Cogmind - Beta 13 @@@ ROGUE MODE // 2024.04.17 @ 22:10:18 Player: Gold Spoon Result: Self-destructed Performance ------------- Evolutions (3) 1500 Regions Visited (6) 1200 Robots Destroyed (85) 425 Value Destroyed (2327) 2327 Prototype IDs (1) 20 Alien Tech Used (0) 0 Bonus (82) 82 TOTAL SCORE: 5554 Bonus ------- High Alert Combat Kills 82 Cogmind --------- Core Integrity 646/700 Matter 161/300 Energy 290/290 System Corruption 0% Temperature Cool (80) Movement Treading (157) Location -7/Factory Parts ------- > --- POWER (1) -------- Improved Deuterium Engine > --- PROPULSION (4) --- Armored Treads Armored Treads Advanced Treads Advanced Treads > --- UTILITY (5) ------ Medium Storage Unit Improved Signal Interpreter Targeting Computer Melee Analysis Suite > --- WEAPON (3) ------- High-powered Shotgun High-powered Shotgun High-powered Shotgun > --- INVENTORY (10) --- Light Nuclear Core Microactuators High-powered Shotgun High-powered Shotgun Mace Peak State ------------ > --- POWER ------------ Improved Deuterium Engine > --- PROPULSION ------- Armored Treads Armored Treads Advanced Treads Advanced Treads > --- UTILITY ---------- Medium Storage Unit Improved Signal Interpreter Targeting Computer Melee Analysis Suite > --- WEAPON ----------- High-powered Shotgun High-powered Shotgun High-powered Shotgun > --- INVENTORY -------- Light Nuclear Core High-powered Shotgun High-powered Shotgun Mace [Rating: 34] Favorites ----------- Power Ion Engine Engine Ion Engine Power Core Light Nuclear Core Propulsion Aluminum Leg Treads Armored Treads Leg Aluminum Leg Utility Small Storage Unit Storage Small Storage Unit Processor Targeting Computer Protection Light Armor Plating Weapon Light Assault Rifle Energy Gun Shock Rifle Energy Cannon Particle Cannon Ballistic Gun Light Assault Rifle Ballistic Cannon Improved Light Cannon Launcher Rocket Launcher Impact Weapon Hammer Slashing Weapon Katana Build | -11 -10 -10 -9 -9 -8 -7 ------- Run | Yrd Mat Min Mat Min Mat Fac Slots Evolved 6 | . . . 2 . 2 2 Power . | . . . . . . . Propulsion 2 | . . . . . 1 1 Utility 3 | . . . 1 . 1 1 Weapon 1 | . . . 1 . . . Parts Attached 50 | 6 3 5 12 . 22 2 Power 6 | 1 . 1 1 . 2 1 Engine 4 | 1 . 1 1 . . 1 Core 2 | . . . . . 2 . Reactor . | . . . . . . . Propulsion 12 | 2 . 1 4 . 4 1 Treads 4 | . . . . . 3 1 Leg 8 | 2 . 1 4 . 1 . Wheel . | . . . . . . . Hover . | . . . . . . . Flight . | . . . . . . . Utility 11 | 1 3 1 1 . 5 . Device . | . . . . . . . Storage 4 | 1 2 . . . 1 . Processor 5 | . . 1 1 . 3 . Hackware . | . . . . . . . Protection 2 | . 1 . . . 1 . Artifact . | . . . . . . . Weapon 21 | 2 . 2 6 . 11 . Energy Gun 3 | . . . . . 3 . Energy Cannon 1 | . . . 1 . . . Ballistic Gun 8 | 2 . 2 . . 4 . Ballistic Cannon 5 | . . . 5 . . . Launcher 2 | . . . . . 2 . Special Weapon . | . . . . . . . Impact Weapon 1 | . . . . . 1 . Slashing Weapon 1 | . . . . . 1 . Piercing Weapon . | . . . . . . . Special Melee Weapon . | . . . . . . . Unidentified Prototypes 1 | . . . . . 1 . Parts Lost 28 | . 1 4 6 5 12 . Power 4 | . . 1 1 . 2 . Propulsion 7 | . . 2 2 2 1 . Utility 4 | . 1 . . 1 2 . Weapon 13 | . . 1 3 2 7 . Highest Loss Streak 5 | . 1 2 4 3 5 . To Critical Strikes . | . . . . . . . Average Slot Usage (%) 81 | . 96 82 90 69 57 90 Engine 8 | . 14 13 9 11 1 2 Treads 4 | . . . . . 10 28 Leg 17 | . 28 27 21 18 2 . Storage 9 | . 14 14 11 9 . 7 Processor 11 | . . . 16 11 24 23 Protection 3 | . 10 . . . 2 . Ballistic Gun 15 | . 28 26 3 . 4 23 Ballistic Cannon 5 | . . . 24 19 1 . Naked Turns . | . . . . . . . Heaviest Build 29 | 13 16 13 27 27 24 29 Greatest Support 84 | 20 20 20 20 20 62 84 Greatest Overweight (x) 4 | . . 1 1 4 3 . Average Overweight (x) . | . . . . . . . Largest Inventory Capacity 10 | 8 10 8 8 8 10 10 Average Capacity 7 | 6 8 8 8 7 5 10 Most Carried 8 | 4 5 8 8 4 5 5 Average Carried 4 | . 4 6 5 4 2 3 Final Capacity 10 | 8 8 8 8 5 10 10 Final Carried 5 | . 5 5 4 4 4 5 Class Distribution -------------------- 71% | Mutant 28% | Gunner Dominant Class ---------------- Mutant | -10/Materials Mutant | -10/Mines Gunner | -9/Materials Mutant | -9/Mines Mutant | -8/Materials Gunner | -7/Factory Resources | -11 -10 -10 -9 -9 -8 -7 ----------- Run | Yrd Mat Min Mat Min Mat Fac Matter Collected 2029 | 211 373 43 670 7 609 116 Remotely . | . . . . . . . Salvage Created 2392 | . 460 50 772 24 846 240 Parts 148 | . 30 5 52 8 44 9 Haulers Intercepted 3 | . . . 2 . 1 . Recyclers Shooed 2 | . 1 . . . 1 . Parts Field Recycled . | . . . . . . . Retrieved Matter . | . . . . . . . Parts Self-Destructed . | . . . . . . . Prevented . | . . . . . . . Kills | -11 -10 -10 -9 -9 -8 -7 ------- Run | Yrd Mat Min Mat Min Mat Fac Combat Hostiles Destroyed 60 | . 11 3 18 4 18 6 Melee 2 | . . . . . 2 . Guns 23 | . 11 3 . . 3 6 Cannons 22 | . . . 18 4 . . AOE 10 | . . . . . 10 . Classes Destroyed 15 | . 5 . 7 . 2 1 Worker 7 | . 2 . 1 . 3 1 Builder 3 | . . . 1 . 2 . Tunneler 2 | . . . 1 . 1 . Hauler 3 | . . . 2 . 1 . Recycler 2 | . . . . . 2 . Mechanic 1 | . . . 1 . . . Operator 1 | . 1 . . . . . Watcher 6 | . 2 . 2 . 2 . Swarmer 15 | . 3 3 . 4 4 1 Grunt 33 | . 8 . 13 . 11 1 Brawler 2 | . . . 1 . . 1 Duelist 1 | . . . . . . 1 Protector 1 | . . . 1 . . . Sentry 7 | . . . 3 . 2 2 Hunter 1 | . . . . . 1 . Best Kill Streak 11 | . 6 3 11 4 7 4 Combat Bots Only 8 | . 5 3 8 4 4 3 Max Kills in Single Turn 4 | . 2 1 2 1 4 2 Gunslinging . | . . . . . . . Exploded 4 | . . . . . 4 . Melee 1 | . . . . . 1 . Uniques/NPCs Destroyed . | . . . . . . . Combat | -11 -10 -10 -9 -9 -8 -7 -------- Run | Yrd Mat Min Mat Min Mat Fac Hostile Shots Fired 524 | . 48 45 107 65 134 125 Missed 149 | . 13 17 22 22 36 39 Damage Taken 4741 | . 420 361 1321 354 1587 698 Core 1111 | . 69 92 288 66 542 54 Absorbed by Shields . | . . . . . . . Core Remaining (%) 36 | 100 . 35 . 11 1 . Volleys Fired 186 | . 55 13 51 14 36 17 Largest 3 | . 2 2 3 3 3 3 Hottest 150 | . 40 40 146 117 150 75 Shots Fired 385 | . 110 17 126 21 60 51 Gun 218 | . 110 17 . . 40 51 Cannon 150 | . . . 126 21 3 . Launcher 17 | . . . . . 17 . Special . | . . . . . . . Kinetic 335 | . 110 17 102 21 34 51 Thermal 24 | . . . 24 . . . Explosive 17 | . . . . . 17 . Electromagnetic 9 | . . . . . 9 . Robot Hit Streak 13 | . 13 7 5 5 5 12 Robot Miss Streak 11 | . 11 4 5 4 5 5 Penetration Max . | . . . . . . . Secondary Targets 2 | . . . . . . 2 Max Gunslinging Chain 1 | . . . . . . 1 Shots Hit Robots 229 | . 63 10 53 7 54 42 Core Hits 140 | . 31 6 33 5 44 21 Critical Kills 2 | . 1 . . . . 1 Critical Parts Destroyed 5 | . . . . . 4 1 Critical Strikes 11 | . 1 . 1 . 6 3 Destroy 4 | . 1 . . . . 3 Blast 1 | . . . 1 . . . Smash 4 | . . . . . 4 . Sever 2 | . . . . . 2 . Melee Attacks 25 | . . . . . 25 . Impact 17 | . . . . . 17 . Slashing 8 | . . . . . 8 . Piercing . | . . . . . . . Sneak Attacks 1 | . . . . . 1 . Combat Hostiles . | . . . . . . . Follow-up Attacks . | . . . . . . . Damage Inflicted 5912 | . 793 87 1535 180 2499 818 Guns 2064 | . 757 81 . . 408 818 Cannons 1709 | . . . 1526 164 19 . Explosions 1555 | . . . . . 1555 . Melee 511 | . . . . . 511 . Ramming 73 | . 36 6 9 16 6 . Kinetic 3390 | . 757 81 1233 164 337 818 Thermal 399 | . . . 293 . 106 . Explosive 1449 | . . . . . 1449 . Electromagnetic 90 | . . . . . 90 . Impact 327 | . . . . . 327 . Slashing 184 | . . . . . 184 . Piercing . | . . . . . . . Highest Corruption 5 | . 2 5 . . . . Average Corruption 3 | . 2 4 . . . . Corruption Purged . | . . . . . . . Corruption Blocked . | . . . . . . . Effects 18 | . 6 12 . . . . Message Errors 7 | . 2 5 . . . . Matter Fused 3 | . 1 2 . . . . Heat Flow Errors 1 | . 1 . . . . . Energy Discharges 2 | . . 2 . . . . Data Loss (minor) 2 | . 1 1 . . . . Data Loss (major) 2 | . 1 1 . . . . Alerts 1 | . . 1 . . . . Overload Shots . | . . . . . . . Overflow Damage 157 | . . . . 19 138 . Projectiles 19 | . . . . 19 . . Explosions 38 | . . . . . 38 . Melee 100 | . . . . . 100 . Knockbacks 20 | . . . 14 2 4 . Impact 2 | . . . . . 2 . Kinetic 15 | . . . 12 2 1 . Secondary 3 | . . . 2 . 1 . Self-Inflicted Damage 154 | . . . . . 154 . Shots 5 | . . . . . 5 . Rammed 2 | . . . . . 2 . Targets Rammed 22 | . 12 1 3 3 3 . Kicked 20 | . 12 1 3 3 1 . Crushed . | . . . . . . . Highest Temperature 866 | . 236 . 866 165 90 107 Average Temperature 172 | . 24 . 286 96 19 47 Received Heat Transfer 1989 | . 228 . 705 . 828 228 Effects 33 | . . . 33 . . . Shutdowns 4 | . . . 4 . . . Energy Bleed 5 | . . . 5 . . . Interference 7 | . . . 7 . . . Matter Decay 9 | . . . 9 . . . Short Circuit 2 | . . . 2 . . . Damage (minor) 1 | . . . 1 . . . Damage (major) 3 | . . . 3 . . . Damage (core) 2 | . . . 2 . . . Siege Activations . | . . . . . . . Robots Corrupted 1 | . . . . . 1 . Combat Hostiles 1 | . . . . . 1 . Parts Fried 10 | . . . . . 10 . Impact Corruptions 6 | . . . . . 6 . Robots Melted . | . . . . . . . Combat Hostiles . | . . . . . . . Parts Melted . | . . . . . . . Heat Transferred 580 | . . . 480 . 100 . Parts Sabotaged . | . . . . . . . Parts Stolen . | . . . . . . . Parts Stripped . | . . . . . . . Power Chain Reactions 1 | . . . . . 1 . Alert | -11 -10 -10 -9 -9 -8 -7 ------- Run | Yrd Mat Min Mat Min Mat Fac Peak Influence 549 | . 233 109 332 196 549 402 Initial 223 | . . 39 . 121 68 223 Average 151 | . 56 76 163 159 264 260 Maximum Alert Level 2 | . 1 . 1 . 2 2 Low Security (%) 71 | 100 92 100 61 100 54 . Level 1 17 | . 7 . 38 . 9 96 Level 2 10 | . . . . . 35 3 Level 3 . | . . . . . . . Level 4 . | . . . . . . . Level 5 . | . . . . . . . High Security . | . . . . . . . Max Security . | . . . . . . . Squads Dispatched 10 | . 2 . 4 . 3 1 Investigation 5 | . 1 . 1 . 2 1 Extermination . | . . . . . . . Reinforcement 4 | . 1 . 2 . 1 . Assault 1 | . . . 1 . . . Garrison . | . . . . . . . Intercept . | . . . . . . . Searches Triggered . | . . . . . . . Construction Impeded 1 | . . . 1 . . . Haulers Reinforced . | . . . . . . . Active Scanning Responses . | . . . . . . . Cargo Convoy Interrupts . | . . . . . . . Stealth | -11 -10 -10 -9 -9 -8 -7 --------- Run | Yrd Mat Min Mat Min Mat Fac Distress Signals 4 | . . . 2 . 2 . Communications Jammed . | . . . . . . . Distress Signals . | . . . . . . . Times Spotted 122 | . 20 24 28 8 32 10 Peak Tracking Total 15 | . 5 15 8 4 5 4 Tactical Retreats 4 | . . 1 . . 3 . Traps | -11 -10 -10 -9 -9 -8 -7 ------- Run | Yrd Mat Min Mat Min Mat Fac Traps Triggered 4 | . 1 . 1 . 1 1 Indirectly . | . . . . . . . Trap Hack Attempts . | . . . . . . . Triggered . | . . . . . . . Disarmed 12 | . 12 . . . . . Reprogrammed . | . . . . . . . Reused . | . . . . . . . Traps Extracted . | . . . . . . . Installed . | . . . . . . . Triggered . | . . . . . . . Machines | -11 -10 -10 -9 -9 -8 -7 ---------- Run | Yrd Mat Min Mat Min Mat Fac Machines Disabled 7 | . . . 1 . 6 . Max in Single Turn 3 | . . . 1 . 3 . Machines Repaired . | . . . . . . . Machines Dismantled . | . . . . . . . Machines Sabotaged . | . . . . . . . Overloaded Fab Kills . | . . . . . . . Hacking | -11 -10 -10 -9 -9 -8 -7 --------- Run | Yrd Mat Min Mat Min Mat Fac Machines Accessed 12 | . 7 . 1 . 3 1 Terminals 12 | . 7 . 1 . 3 1 Fabricators . | . . . . . . . Repair Stations . | . . . . . . . Recycling Units . | . . . . . . . Scanalyzers . | . . . . . . . Garrison Access . | . . . . . . . Total Hacks 32 | . 20 . 2 . 6 4 Successful 19 | . 13 . 1 . 4 1 Failed 13 | . 7 . 1 . 2 3 Catastrophic 2 | . 1 . . . . 1 Database Lockouts . | . . . . . . . Manual 2 | . . . . . 2 . Terminals 32 | . 20 . 2 . 6 4 Fabricators . | . . . . . . . Repair Stations . | . . . . . . . Recycling Units . | . . . . . . . Scanalyzers . | . . . . . . . Garrison Access . | . . . . . . . Terminal Hacks 19 | . 13 . 1 . 4 1 Record 2 | . . . . . 2 . Branch Access Points 2 | . 1 . 1 . . . Emergency Access Points 2 | . 2 . . . . . Alert Level 3 | . 2 . . . 1 . Unreport Threat 1 | . 1 . . . . . Locate Traps 3 | . 2 . . . . 1 Disarm Traps 2 | . 2 . . . . . Transport Status 1 | . 1 . . . . . Hauler Manifests 1 | . 1 . . . . . Zone Layout 2 | . 1 . . . 1 . Fabricator Hacks . | . . . . . . . Repair Station Hacks . | . . . . . . . Recycling Unit Hacks . | . . . . . . . Scanalyzer . | . . . . . . . Garrison Access Hacks . | . . . . . . . Unauthorized Hacks . | . . . . . . . Terminals . | . . . . . . . Fabricators . | . . . . . . . Repair Stations . | . . . . . . . Recycling Units . | . . . . . . . Scanalyzers . | . . . . . . . Garrison Access . | . . . . . . . Data Cores Recovered 1 | . 1 . . . . . Used . | . . . . . . . Hacking Detections 10 | . 5 . 1 . 3 1 Full Trace Events 3 | . 1 . . . 1 1 Feedback Events . | . . . . . . . Feedback Blocked . | . . . . . . . Robot Schematics Acquired . | . . . . . . . Robots Built . | . . . . . . . Authchips . | . . . . . . . Time . | . . . . . . . Total Robot Build Rating . | . . . . . . . Part Schematics Acquired . | . . . . . . . Parts Built . | . . . . . . . Authchips . | . . . . . . . Time . | . . . . . . . Total Part Build Rating . | . . . . . . . Parts Repaired . | . . . . . . . Time . | . . . . . . . Parts Recycled . | . . . . . . . Recycled Matter . | . . . . . . . Retrieved Matter . | . . . . . . . Retrieved Components . | . . . . . . . Parts Scanalyzed . | . . . . . . . Part Schematics Acquired . | . . . . . . . Parts Damaged . | . . . . . . . Bothacking | -11 -10 -10 -9 -9 -8 -7 ------------ Run | Yrd Mat Min Mat Min Mat Fac Used RIF Installer . | . . . . . . . Robots Hacked . | . . . . . . . Non-combat . | . . . . . . . Combat . | . . . . . . . Robot Hacks Applied . | . . . . . . . Relay Couplers Released . | . . . . . . . Fabnet Peak Effective % . | . . . . . . . Robots Rewired . | . . . . . . . Allies Hacked . | . . . . . . . Hacks Repelled . | . . . . . . . Allies | -11 -10 -10 -9 -9 -8 -7 -------- Run | Yrd Mat Min Mat Min Mat Fac Total Allies . | . . . . . . . Largest Group . | . . . . . . . Highest-Rated Group . | . . . . . . . Highest-Rated Ally . | . . . . . . . Total Orders . | . . . . . . . Ally Attacks . | . . . . . . . Total Damage . | . . . . . . . Kills . | . . . . . . . Allies Corrupted . | . . . . . . . Allies Melted . | . . . . . . . Intel | -11 -10 -10 -9 -9 -8 -7 ------- Run | Yrd Mat Min Mat Min Mat Fac Robot Analysis Total . | . . . . . . . Derelict Logs Recovered 1 | . . 1 . . . . Drone Launches . | . . . . . . . Drone Recoveries . | . . . . . . . Exploration | -11 -10 -10 -9 -9 -8 -7 ------------- Run | Yrd Mat Min Mat Min Mat Fac Turns Passed 3671 | 45 1114 462 685 133 1007 225 Spaces Moved 2221 | 33 767 352 285 57 625 102 Core 262 | 8 . . . 4 250 . Treads 323 | . . . . . 221 102 Legs 1636 | 25 767 352 285 53 154 . Wheels . | . . . . . . . Hover . | . . . . . . . Flight . | . . . . . . . Fastest Speed 50 | 50 120 120 120 120 50 157 Average Speed 130 | 103 120 120 169 163 124 158 Slowest Speed 250 | 120 120 190 190 250 200 161 Overloaded Moves . | . . . . . . . Propulsion Burnouts . | . . . . . . . Robots Hopped . | . . . . . . . Cave-ins Triggered . | . . . . . . . Exploration Rate (%) 41 | 3 99 80 37 18 49 5 Regions Visited 6 Branch Regions 2 Pre-discovered Areas 1 | . . . . 1 . . Known Exits Taken 4 | . 1 1 1 . 1 . Unknown Exits Taken 2 | 1 . . . 1 . . Scrap Searched 1 | . . 1 . . . . Spaces Dug . | . . . . . . . Terrain Destroyed 205 | . . . 6 . 199 . Melee . | . . . . . . . Projectile 6 | . . . 6 . . . AOE 199 | . . . . . 199 . Terrain Rammed . | . . . . . . . Walls Destroyed . | . . . . . . . Machines Disabled . | . . . . . . . Actions | -11 -10 -10 -9 -9 -8 -7 --------- Run | Yrd Mat Min Mat Min Mat Fac Total 2628 | 44 859 376 386 77 759 127 Wait 57 | . 13 . 18 3 23 . Move 2215 | 32 766 351 284 56 624 102 Hop . | . . . . . . . Pick Up 58 | 6 8 5 13 . 22 4 Fast Attach . | . . . . . . . Attach 46 | 6 1 5 11 . 22 1 Detach 1 | . . . . . 1 . Swap 5 | . 2 . 1 . 1 1 Drop 13 | . 2 1 5 1 2 2 Fire 186 | . 55 13 51 14 36 17 Melee 25 | . . . . . 25 . Ram . | . . . . . . . Kick 20 | . 12 1 3 3 1 . Crush 2 | . . . . . 2 . Escape Stasis . | . . . . . . . Rewire . | . . . . . . . Trap . | . . . . . . . Miscellaneous . | . . . . . . . Route ------- -11/Scrapyard -10/Materials (discovered 4 exits: *Mat x3 / *Min) -10/Mines (discovered 2 exits: *Mat x2) -9/Materials -9/Mines -8/Materials -7/Factory History --------- Turn | Location | Event 9 | -11/Scrapyard | Discovered new exit (range 16) 46 | -11/Scrapyard | Entered Materials 150 | -10/Materials | Discovered new exit (range 12) 247 | -10/Materials | Identified exit to Mines 316 | -10/Materials | Build established: Mutant 440 | -10/Materials | Discovered new exit (range 15) 781 | -10/Materials | Discovered new exit (range 7) 1014 | -10/Materials | Discovered new exit (range 5) 1160 | -10/Materials | Entered Mines 1161 | -10/Mines | Met a Derelict testing a Signal Generator 1162 | -10/Mines | Found Signal Generator 1174 | -10/Mines | Assembled infested the area 1179 | -10/Mines | Assisted by a Guerilla fighting off Assembled 1208 | -10/Mines | Core integrity fell below 50% 1227 | -10/Mines | Received a Rocket Launcher from a helpful Derelict 1517 | -10/Mines | Learned Materials garrison access intel 1609 | -10/Mines | Discovered new exit (range 12) 1610 | -10/Mines | Discovered new exit (range 7) 1620 | -10/Mines | Identified exit to Materials 1622 | -10/Mines | Entered Materials 1622 | -9/Materials | Evolved 2 slots: Utility x1, Weapon x1 1680 | -9/Materials | Identified exit to Mines 1889 | -9/Materials | Destroyed 8 combat bots 1912 | -9/Materials | Core integrity fell below 50% 1943 | -9/Materials | Lost 4 parts (2n2w) 1998 | -9/Materials | Build established: Gunner 2307 | -9/Materials | Entered Mines 2308 | -9/Mines | Learned location of Storage (-7) 2388 | -9/Mines | Discovered new exit (range 15) 2392 | -9/Mines | Excavation squad dispatched 2392 | -9/Mines | A large section of the Mines collapsed 2432 | -9/Mines | Core integrity fell below 20% 2440 | -9/Mines | Entered Materials 2440 | -8/Materials | Evolved 2 slots: Propulsion x1, Utility x1 2441 | -8/Materials | Loaded intel: 1 garrison access location 2462 | -8/Materials | Lost 3 parts (2n1u) 2654 | -8/Materials | Build established: Mutant 2802 | -8/Materials | Lost 5 parts (1n1u3w) 2950 | -8/Materials | Core integrity fell below 50% 2967 | -8/Materials | Core integrity fell below 20% 3335 | -8/Materials | Discovered new exit (range 16) 3446 | -8/Materials | Identified exit to Factory 3447 | -8/Materials | Entered Factory 3447 | -7/Factory | Evolved 2 slots: Propulsion x1, Utility x1 3643 | -7/Factory | Build established: Gunner 3672 | -7/Factory | Self-destructed Last Messages --------------- Switching to secondary target: Y-54 Guardian. R-06 Scavenger collects Unknown Wheel. K-01 Serf collects debris. K-01 Serf cleans the Terminal. R-06 Scavenger collects Unknown Wheel. K-01 Serf cleans the Terminal. K-01 Serf collects debris. R-06 Scavenger collects Terrain Scanner. K-01 Serf cleans the Terminal. Y-54 Guardian suffers critical hit (Destroy). Y-54 Guardian destroyed. K-01 Serf collects debris. R-06 Scavenger collects Unknown Wheel. K-01 Serf collects debris. R-06 Scavenger collects Lgt. Treads. K-01 Serf collects debris. R-06 Scavenger collects Welding Torch. K-01 Serf collects debris. K-01 Serf cleans the Terminal. K-01 Serf collects debris. Map ----- +----------------------------------------------------+ | ???????????????????????# """ """ # """"""""" # | | ???????????????????????# ? # # | | ??????????????????????? """ """ + """"""""" # | | ???????????????????????# """ """ # # | | ???????????????????????# ! """ """ ########+##### | | ???????????????????????# """ """ #??????# #???? | | ???????????##+########## #??????# #???? | | ?????????? """ """ #??????# #???? | | ??????????? """ """ ########+##### | | ??????????? """ """ # # | | ??????????? """ #! # | | ??????????? # """" # | | ????????????##### #= ! """" # | | ????????????????# # /= """" # | | ????????????????# # = """" # | | ????????????????# + """" !# | | ????????????????# "" "" # """"? # | | ???????????+##### ""F"" # """"??# | | ??????????# """ # "" ?? | | ??????????# #######+################# S"" # | | ?????????????# k r #?????????# "" # | | ?????????????# | """"" #?????????############## | | ?????????????# ""T"" #??????????????????????? | | ?????????????# kkrY!#??????????????^?^?????? | | ?????????????+ k %#####+##???????????????? | | ?????????????# """""@gr%g +????????????? | | ?????????????# """""k#####a #????????????? | | ?????????????# """ #?????????#^???????????? | | ?????????????# %#??????????????????????? | | ?????????????# #???????????^??????????? | | ?????????????# !!#??????????????????????? | | ?????????????# ! #?????????????^????????? | | ?????????????############ #??????????^???????????? | | ????????????????????????###??????????????????????? | | ?????????????????????????????????????????????????? | | ?????????????????????????????????????????????????? | | ?????????????????????????????????????????????????? | | ?????????????????????????^^??????????????????????? | | ?????????????????????????^^??????????????????????? | | ?????????????????????????????????????????????????? | | ?????????????????????????????????????????????????? | | ?????????????????????????????????????????????????? | | ?????????????????????????????????????????????????? | | ?????????????????????????????????????????????????? | | ?????????????????????????????????????????????????? | | ?????????????????????????????????????????????????? | | ?????????????????????????????????????????????????? | | ?????????????????????????????????????????????????? | | ?????????????????????????????????????????????????? | | ?????????????????????????????????????????????????? | +----------------------------------------------------+ Best States ------------- Heat Dissipation 34 Energy Generation 16 Energy Capacity 290 Matter Stores 300 Matter Capacity 300 Sight Range 16 Terrain Scan Density 10 Armor Coverage 150 Evasion (%) 55 Targeting Accuracy 10 Melee Accuracy 5 Recoil Reduction 4 Item Schematics ----------------- None Robot Schematics ------------------ None Fabricated ------------ Nothing Alien Tech Used ----------------- None Achievements -------------- Shopping List Slippery One Challenges ------------ None Game ------ Seed DispersionCooledCannon Manual? 0 Play Time 00:37:41 Cumulative 8.9 hours Start 2024.04.17 @ 21:34:56 End 2024.04.17 @ 22:10:18 Sessions 1 Manual Loads 0 Difficulty Rogue Special Mode None Game No. 13 Rogue 11 Adventurer 2 Explorer 0 Win Type - Total 0 Types 0/0/0/0/0/0/0/0/0 Lore% 18 Gallery% 12 Achievement% 14 Wizard Run 0 Options --------- Layout 1 ASCII 0 Keyboard 0 Movement Mouse Keybinds 0 Fullscreen 1 Font 24/Smallcaps Map View 50x40 Zoom Use 0% Tactical HUD 0 Map Filters NONE Filters NONE Steam 1 RUN: 46da7fa7-d94f-4e8e-9026-31bc29b41f48